[Event "Late-Titled-Tuesday-Blitz-March-26-2024"]
[Site "Chess.com"]
[Date "2024.03.26"]
[Round "3"]
[White "KorolDimitriy75"]
[Black "Orest_Vovk"]
[Result "1/2-1/2"]
[WhiteElo "2400"]
[BlackElo "2594"]
[TimeControl "180+1"]
[EndTime "14:30:29 PDT"]
[Termination "Game drawn by repetition"]

1. d4 {[%clk 0:02:55.8]} 1... Nc6 {[%clk 0:02:39.5]} 2. c4 {[%clk 0:02:55.3]}
2... e5 {[%clk 0:02:39.2]} 3. dxe5 {[%clk 0:02:54.8]} 3... Nxe5 {[%clk
0:02:39.1]} 4. e3 {[%clk 0:02:54.9]} 4... Nf6 {[%clk 0:02:38.4]} 5. Nc3 {[%clk
0:02:53]} 5... Bb4 {[%clk 0:02:37.5]} 6. Bd2 {[%clk 0:02:52.8]} 6... O-O {[%clk
0:02:35.5]} 7. Be2 {[%clk 0:02:47.9]} 7... Re8 {[%clk 0:02:34.1]} 8. Nf3 {[%clk
0:02:44.9]} 8... d6 {[%clk 0:02:32.7]} 9. O-O {[%clk 0:02:42.7]} 9... h6 {[%clk
0:02:29.3]} 10. Nd5 {[%clk 0:02:30.3]} 10... Nxd5 {[%clk 0:02:27.6]} 11. cxd5
{[%clk 0:02:29.7]} 11... Bxd2 {[%clk 0:02:26]} 12. Qxd2 {[%clk 0:02:30.6]} 12...
Nxf3+ {[%clk 0:02:22.2]} 13. Bxf3 {[%clk 0:02:31.5]} 13... Bf5 {[%clk
0:02:18.6]} 14. Rac1 {[%clk 0:02:30.5]} 14... Be4 {[%clk 0:02:12.4]} 15. Bxe4
{[%clk 0:02:20.4]} 15... Rxe4 {[%clk 0:01:44.1]} 16. Rc3 {[%clk 0:02:20]} 16...
Rc8 {[%clk 0:01:33.7]} 17. Rfc1 {[%clk 0:02:19.3]} 17... Re7 {[%clk 0:01:33.7]}
18. Qd4 {[%clk 0:02:16.6]} 18... a6 {[%clk 0:01:29.5]} 19. Qa7 {[%clk
0:02:06.1]} 19... Rb8 {[%clk 0:01:18.8]} 20. h3 {[%clk 0:01:55.1]} 20... Rd7
{[%clk 0:00:59.6]} 21. Qd4 {[%clk 0:01:19.2]} 21... Re7 {[%clk 0:00:57.3]} 22.
a4 {[%clk 0:01:17.5]} 22... b6 {[%clk 0:00:49.8]} 23. b4 {[%clk 0:01:14.6]}
23... a5 {[%clk 0:00:47.7]} 24. b5 {[%clk 0:01:13.5]} 24... Rd7 {[%clk
0:00:44.2]} 25. Rc4 {[%clk 0:01:07.7]} 25... Qe7 {[%clk 0:00:42.3]} 26. Qc3
{[%clk 0:01:04.8]} 26... Rb7 {[%clk 0:00:36.5]} 27. Rg4 {[%clk 0:00:51.5]} 27...
f6 {[%clk 0:00:23.6]} 28. Qc6 {[%clk 0:00:51.3]} 28... Rb8 {[%clk 0:00:19.1]}
29. Re4 {[%clk 0:00:43.7]} 29... Qf7 {[%clk 0:00:13.8]} 30. Re6 {[%clk
0:00:42.4]} 30... Re8 {[%clk 0:00:09.7]} 31. Qc4 {[%clk 0:00:37.6]} 31... Rde7
{[%clk 0:00:08.8]} 32. Rxe7 {[%clk 0:00:36.5]} 32... Rxe7 {[%clk 0:00:09.3]} 33.
Qg4 {[%clk 0:00:32.8]} 33... f5 {[%clk 0:00:09]} 34. Qd4 {[%clk 0:00:32.3]}
34... Qf6 {[%clk 0:00:05.8]} 35. Qxf6 {[%clk 0:00:31.6]} 35... gxf6 {[%clk
0:00:06.7]} 36. Rc4 {[%clk 0:00:31.4]} 36... Kf7 {[%clk 0:00:06.6]} 37. Kf1
{[%clk 0:00:30.6]} 37... Ke8 {[%clk 0:00:06.4]} 38. Ke2 {[%clk 0:00:30.8]} 38...
Kd7 {[%clk 0:00:05.8]} 39. Kd3 {[%clk 0:00:30.7]} 39... Re5 {[%clk 0:00:06]} 40.
Rd4 {[%clk 0:00:29.6]} 40... Kd8 {[%clk 0:00:05.3]} 41. g3 {[%clk 0:00:29.5]}
41... Kd7 {[%clk 0:00:05.1]} 42. Kc4 {[%clk 0:00:29.3]} 42... Re7 {[%clk
0:00:02.9]} 43. Rf4 {[%clk 0:00:28.8]} 43... Re4+ {[%clk 0:00:02.8]} 44. Rxe4
{[%clk 0:00:26.6]} 44... fxe4 {[%clk 0:00:03.7]} 45. Kd4 {[%clk 0:00:26.6]}
45... f5 {[%clk 0:00:04.6]} 46. Kc4 {[%clk 0:00:21.8]} 46... Ke7 {[%clk
0:00:04.2]} 47. Kc3 {[%clk 0:00:21]} 47... Kf6 {[%clk 0:00:04.2]} 48. Kd4 {[%clk
0:00:20.2]} 48... h5 {[%clk 0:00:04.4]} 49. h4 {[%clk 0:00:19.4]} 49... Kg6
{[%clk 0:00:04.5]} 50. Kc3 {[%clk 0:00:19.2]} 50... Kg7 {[%clk 0:00:04.6]} 51.
Kc4 {[%clk 0:00:19]} 51... Kf6 {[%clk 0:00:04.5]} 52. Kd4 {[%clk 0:00:18.5]}
52... Kf7 {[%clk 0:00:04.8]} 53. Kc4 {[%clk 0:00:18.5]} 53... Ke7 {[%clk
0:00:05.2]} 54. Kc3 {[%clk 0:00:18.5]} 54... Kf7 {[%clk 0:00:04.8]} 55. Kc4
{[%clk 0:00:17.6]} 55... Kg7 {[%clk 0:00:05]} 56. Kc3 {[%clk 0:00:17.7]} 56...
Kg6 {[%clk 0:00:05.2]} 57. Kc4 {[%clk 0:00:17.7]} 57... Kf6 {[%clk 0:00:05.5]}
58. Kd4 {[%clk 0:00:17.8]} 1/2-1/2

[Event "Late-Titled-Tuesday-Blitz-March-26-2024"]
[Site "Chess.com"]
[Date "2024.03.26"]
[Round "3"]
[White "janhelmer03"]
[Black "Fh2411"]
[Result "1-0"]
[WhiteElo "2405"]
[BlackElo "2582"]
[TimeControl "180+1"]
[EndTime "14:30:30 PDT"]
[Termination "janhelmer03 won by resignation"]

1. Nf3 {[%clk 0:02:58.3]} 1... d5 {[%clk 0:02:59.9]} 2. e3 {[%clk 0:02:56]} 2...
c6 {[%clk 0:03:00.2]} 3. c4 {[%clk 0:02:56]} 3... Nf6 {[%clk 0:02:58.6]} 4. Nc3
{[%clk 0:02:55.9]} 4... a6 {[%clk 0:02:58]} 5. b3 {[%clk 0:02:49.3]} 5... Bf5
{[%clk 0:02:56.7]} 6. Bb2 {[%clk 0:02:49.4]} 6... e6 {[%clk 0:02:57]} 7. d4
{[%clk 0:02:48.6]} 7... Nbd7 {[%clk 0:02:56.9]} 8. Bd3 {[%clk 0:02:49.2]} 8...
Bg6 {[%clk 0:02:52]} 9. O-O {[%clk 0:02:47.8]} 9... Ne4 {[%clk 0:02:51.6]} 10.
Qc2 {[%clk 0:02:40.1]} 10... f5 {[%clk 0:02:49.3]} 11. Ne2 {[%clk 0:02:35.9]}
11... Bd6 {[%clk 0:02:36.2]} 12. Ne5 {[%clk 0:02:32.2]} 12... O-O {[%clk
0:02:25.1]} 13. Nf4 {[%clk 0:02:27.5]} 13... Qe8 {[%clk 0:02:21.6]} 14. f3
{[%clk 0:02:06.6]} 14... Ng5 {[%clk 0:02:20.2]} 15. h4 {[%clk 0:02:01.4]} 15...
Nf7 {[%clk 0:02:01.5]} 16. Nexg6 {[%clk 0:02:00.7]} 16... hxg6 {[%clk
0:01:57.9]} 17. Nxg6 {[%clk 0:02:01.6]} 17... Qd8 {[%clk 0:01:53.4]} 18. Nxf8
{[%clk 0:02:01.1]} 18... Qxh4 {[%clk 0:01:49.9]} 19. f4 {[%clk 0:01:55.9]} 19...
Rxf8 {[%clk 0:01:44.5]} 20. Qf2 {[%clk 0:01:50.1]} 20... Qh6 {[%clk 0:01:30.1]}
21. g3 {[%clk 0:01:35]} 21... Nf6 {[%clk 0:01:27]} 22. Rae1 {[%clk 0:01:16.4]}
22... g5 {[%clk 0:01:05.7]} 23. Qh2 {[%clk 0:01:09.3]} 23... Qg6 {[%clk
0:01:05.5]} 24. Qg2 {[%clk 0:01:00.9]} 24... Ng4 {[%clk 0:00:45.5]} 25. Qh3
{[%clk 0:00:57.5]} 25... Nfh6 {[%clk 0:00:38.5]} 26. Kg2 {[%clk 0:00:52.6]}
26... Kg7 {[%clk 0:00:36.4]} 27. Bc1 {[%clk 0:00:45.3]} 27... Rh8 {[%clk
0:00:33.8]} 28. Rh1 {[%clk 0:00:44.7]} 28... Nf7 {[%clk 0:00:34]} 29. Qxg4
{[%clk 0:00:43.1]} 29... fxg4 {[%clk 0:00:27.9]} 30. Bxg6 {[%clk 0:00:41.9]}
30... Rxh1 {[%clk 0:00:20.8]} 31. Rxh1 {[%clk 0:00:42.8]} 31... Kxg6 {[%clk
0:00:21.3]} 32. Re1 {[%clk 0:00:37.3]} 32... Kf5 {[%clk 0:00:19.6]} 33. Rh1
{[%clk 0:00:34.1]} 33... Kg6 {[%clk 0:00:20]} 34. Kf2 {[%clk 0:00:32.4]} 34...
Bf8 {[%clk 0:00:17.8]} 35. Ke2 {[%clk 0:00:25.6]} 35... Bh6 {[%clk 0:00:14.7]}
36. Kd3 {[%clk 0:00:25.6]} 36... Kf5 {[%clk 0:00:15.1]} 37. c5 {[%clk
0:00:22.3]} 37... gxf4 {[%clk 0:00:05.2]} 38. exf4 {[%clk 0:00:20.2]} 38... Kf6
{[%clk 0:00:05.6]} 39. Rh5 {[%clk 0:00:19.1]} 39... Kg6 {[%clk 0:00:05.6]} 40.
Rh4 {[%clk 0:00:16.3]} 40... Kf5 {[%clk 0:00:06.3]} 41. Be3 {[%clk 0:00:14.8]}
41... Bg7 {[%clk 0:00:06.6]} 42. Rh5+ {[%clk 0:00:14.7]} 42... Kg6 {[%clk
0:00:05.6]} 43. Rh1 {[%clk 0:00:15.2]} 43... Nh6 {[%clk 0:00:04.6]} 44. b4
{[%clk 0:00:14.9]} 44... Nf5 {[%clk 0:00:04.9]} 45. Bf2 {[%clk 0:00:15.6]} 45...
Bf6 {[%clk 0:00:03.4]} 46. a4 {[%clk 0:00:16.1]} 46... Bd8 {[%clk 0:00:02.7]}
47. b5 {[%clk 0:00:16.4]} 47... axb5 {[%clk 0:00:02.1]} 48. axb5 {[%clk
0:00:17.3]} 48... Ba5 {[%clk 0:00:02.6]} 49. bxc6 {[%clk 0:00:16.7]} 49... bxc6
{[%clk 0:00:03.5]} 50. Ra1 {[%clk 0:00:16.9]} 50... Bd8 {[%clk 0:00:03.8]} 51.
Ra6 {[%clk 0:00:17.4]} 51... Ne7 {[%clk 0:00:03.9]} 52. Ra8 {[%clk 0:00:17.4]}
52... Bc7 {[%clk 0:00:03.2]} 53. Ra7 {[%clk 0:00:18.1]} 53... Bxf4 {[%clk
0:00:03.4]} 54. Rxe7 {[%clk 0:00:17.7]} 1-0

[Event "Late-Titled-Tuesday-Blitz-March-26-2024"]
[Site "Chess.com"]
[Date "2024.03.26"]
[Round "3"]
[White "ural58"]
[Black "Andrey_Klymchuk"]
[Result "0-1"]
[WhiteElo "2468"]
[BlackElo "2688"]
[TimeControl "180+1"]
[EndTime "14:30:34 PDT"]
[Termination "Andrey_Klymchuk won on time"]

1. e4 {[%clk 0:02:56.7]} 1... c5 {[%clk 0:02:58.7]} 2. b3 {[%clk 0:02:56.3]}
2... a6 {[%clk 0:02:54.5]} 3. d4 {[%clk 0:02:55.4]} 3... cxd4 {[%clk 0:02:54]}
4. Qxd4 {[%clk 0:02:55.4]} 4... Nc6 {[%clk 0:02:52]} 5. Qd2 {[%clk 0:02:55]}
5... Nf6 {[%clk 0:02:50.5]} 6. Nc3 {[%clk 0:02:54.9]} 6... g6 {[%clk 0:02:48.2]}
7. Bb2 {[%clk 0:02:54.6]} 7... Bg7 {[%clk 0:02:48.5]} 8. O-O-O {[%clk
0:02:54.4]} 8... O-O {[%clk 0:02:42.9]} 9. f4 {[%clk 0:02:53.6]} 9... d6 {[%clk
0:02:42.1]} 10. Nf3 {[%clk 0:02:52.8]} 10... Qa5 {[%clk 0:02:38.2]} 11. Kb1
{[%clk 0:02:51.9]} 11... Bg4 {[%clk 0:02:38]} 12. h3 {[%clk 0:02:44.1]} 12...
Bxf3 {[%clk 0:02:37.8]} 13. gxf3 {[%clk 0:02:45]} 13... Rac8 {[%clk 0:02:37.4]}
14. f5 {[%clk 0:02:29.8]} 14... Ne5 {[%clk 0:02:31.3]} 15. Be2 {[%clk
0:02:26.9]} 15... b5 {[%clk 0:02:09.6]} 16. Nd5 {[%clk 0:02:23.9]} 16... Qd8
{[%clk 0:02:06.7]} 17. Nxf6+ {[%clk 0:02:20]} 17... Bxf6 {[%clk 0:02:06.1]} 18.
f4 {[%clk 0:02:19.9]} 18... Nd7 {[%clk 0:01:58.5]} 19. fxg6 {[%clk 0:02:19.5]}
19... hxg6 {[%clk 0:01:52.8]} 20. h4 {[%clk 0:02:17.9]} 20... Bxb2 {[%clk
0:01:50.2]} 21. Kxb2 {[%clk 0:02:18.8]} 21... Nf6 {[%clk 0:01:48.2]} 22. Bf3
{[%clk 0:02:13.1]} 22... Kg7 {[%clk 0:01:44.8]} 23. h5 {[%clk 0:02:12.4]} 23...
Rh8 {[%clk 0:01:44.8]} 24. h6+ {[%clk 0:02:05.1]} 24... Kh7 {[%clk 0:01:42.3]}
25. f5 {[%clk 0:02:02.5]} 25... Rc5 {[%clk 0:01:35.6]} 26. fxg6+ {[%clk
0:02:02]} 26... fxg6 {[%clk 0:01:34.4]} 27. Rhg1 {[%clk 0:01:49.3]} 27... Rg8
{[%clk 0:01:33.8]} 28. Rg5 {[%clk 0:01:46.4]} 28... Qc7 {[%clk 0:01:30.9]} 29.
Rdg1 {[%clk 0:01:45.8]} 29... Rxg5 {[%clk 0:01:25.8]} 30. Qxg5 {[%clk
0:01:42.5]} 30... b4 {[%clk 0:01:21.2]} 31. Kb1 {[%clk 0:01:40.6]} 31... Qc3
{[%clk 0:01:18.5]} 32. Bd1 {[%clk 0:01:32.9]} 32... Qe5 {[%clk 0:01:12.6]} 33.
Qd2 {[%clk 0:01:25.7]} 33... Nxe4 {[%clk 0:01:11.3]} 34. Qe1 {[%clk 0:00:55.8]}
34... Nc3+ {[%clk 0:01:04.7]} 35. Ka1 {[%clk 0:00:55.9]} 35... Ne2+ {[%clk
0:01:00.8]} 36. Kb1 {[%clk 0:00:54.1]} 36... Nxg1 {[%clk 0:01:00.7]} 37. Qxg1
{[%clk 0:00:54.7]} 37... Rf8 {[%clk 0:00:59.3]} 38. Qg4 {[%clk 0:00:35.8]} 38...
Rf4 {[%clk 0:00:58]} 39. Qg2 {[%clk 0:00:23.2]} 39... Rd4 {[%clk 0:00:47.7]} 40.
Qf1 {[%clk 0:00:20.7]} 40... Rf4 {[%clk 0:00:41]} 41. Qg2 {[%clk 0:00:20.7]}
41... Kxh6 {[%clk 0:00:40.2]} 42. Qh1+ {[%clk 0:00:13.7]} 42... Kg7 {[%clk
0:00:39.8]} 43. Bf3 {[%clk 0:00:13.8]} 43... Qe3 {[%clk 0:00:28.1]} 44. Bb7
{[%clk 0:00:11.5]} 44... Qd2 {[%clk 0:00:24.5]} 45. Bxa6 {[%clk 0:00:09.8]}
45... Qc3 {[%clk 0:00:19.4]} 46. Bd3 {[%clk 0:00:09.2]} 46... Qf6 {[%clk
0:00:19.5]} 47. Qb7 {[%clk 0:00:07.8]} 47... g5 {[%clk 0:00:16.4]} 48. Qa7
{[%clk 0:00:05.1]} 48... g4 {[%clk 0:00:16.3]} 49. a3 {[%clk 0:00:05.2]} 49...
bxa3 {[%clk 0:00:16]} 50. Qxa3 {[%clk 0:00:05.2]} 50... g3 {[%clk 0:00:16.3]}
51. Qa8 {[%clk 0:00:04.1]} 51... Rf2 {[%clk 0:00:15.5]} 52. Qe4 {[%clk
0:00:02.4]} 52... g2 {[%clk 0:00:15.6]} 53. Qh7+ {[%clk 0:00:02.2]} 53... Kf8
{[%clk 0:00:16.1]} 54. Qh2 {[%clk 0:00:02.1]} 54... Rf1+ {[%clk 0:00:15.4]} 0-1

[Event "Late-Titled-Tuesday-Blitz-March-26-2024"]
[Site "Chess.com"]
[Date "2024.03.26"]
[Round "3"]
[White "aceontheturn"]
[Black "Irishchessman16"]
[Result "1/2-1/2"]
[WhiteElo "2737"]
[BlackElo "2556"]
[TimeControl "180+1"]
[EndTime "14:30:35 PDT"]
[Termination "Game drawn - insufficient material"]

1. e4 {[%clk 0:03:00.9]} 1... c5 {[%clk 0:02:58.7]} 2. Nf3 {[%clk 0:03:00.8]}
2... Nc6 {[%clk 0:02:59]} 3. d4 {[%clk 0:02:59.8]} 3... cxd4 {[%clk 0:02:59.9]}
4. Nxd4 {[%clk 0:03:00.6]} 4... Nf6 {[%clk 0:02:59.8]} 5. Nc3 {[%clk 0:03:00.5]}
5... d6 {[%clk 0:03:00]} 6. Be2 {[%clk 0:02:59.9]} 6... g6 {[%clk 0:02:57.5]} 7.
O-O {[%clk 0:02:58.3]} 7... Bg7 {[%clk 0:02:57.1]} 8. Be3 {[%clk 0:02:59.1]}
8... Nxd4 {[%clk 0:02:47.5]} 9. Bxd4 {[%clk 0:02:58.5]} 9... O-O {[%clk
0:02:47.7]} 10. Re1 {[%clk 0:02:53.4]} 10... Be6 {[%clk 0:02:39.5]} 11. Qd2
{[%clk 0:02:52.7]} 11... d5 {[%clk 0:02:38.5]} 12. exd5 {[%clk 0:02:42.2]} 12...
Nxd5 {[%clk 0:02:24.1]} 13. Bxg7 {[%clk 0:02:43.1]} 13... Kxg7 {[%clk
0:02:22.3]} 14. f3 {[%clk 0:02:42.8]} 14... Qb6+ {[%clk 0:02:10.7]} 15. Kh1
{[%clk 0:02:41.9]} 15... Rfd8 {[%clk 0:02:06.9]} 16. Nxd5 {[%clk 0:02:41.2]}
16... Rxd5 {[%clk 0:02:01.7]} 17. Qc3+ {[%clk 0:02:41.1]} 17... Qd4 {[%clk
0:01:44.9]} 18. Qxd4+ {[%clk 0:02:38.7]} 18... Rxd4 {[%clk 0:01:45.8]} 19. Rad1
{[%clk 0:02:37.8]} 19... Rad8 {[%clk 0:01:42.9]} 20. Rxd4 {[%clk 0:02:34.5]}
20... Rxd4 {[%clk 0:01:43.8]} 21. Bd3 {[%clk 0:02:34.7]} 21... Kf6 {[%clk
0:01:38.7]} 22. a3 {[%clk 0:02:33.8]} 22... Bf5 {[%clk 0:01:37.6]} 23. Rd1
{[%clk 0:02:24.4]} 23... Bxd3 {[%clk 0:01:30.7]} 24. cxd3 {[%clk 0:02:25.3]}
24... Rd6 {[%clk 0:01:14.1]} 25. Kg1 {[%clk 0:02:26.2]} 25... Rb6 {[%clk
0:01:07.2]} 26. Rd2 {[%clk 0:02:25.7]} 26... Rb3 {[%clk 0:01:04.5]} 27. Kf2
{[%clk 0:02:25.3]} 27... Ke5 {[%clk 0:01:03.5]} 28. Ke3 {[%clk 0:02:25.5]} 28...
Kd5 {[%clk 0:01:00.9]} 29. Rc2 {[%clk 0:02:25.5]} 29... f5 {[%clk 0:00:47.4]}
30. f4 {[%clk 0:02:23.1]} 30... e5 {[%clk 0:00:45.1]} 31. fxe5 {[%clk
0:02:18.6]} 31... Kxe5 {[%clk 0:00:45.3]} 32. h4 {[%clk 0:02:17.9]} 32... f4+
{[%clk 0:00:40.1]} 33. Ke2 {[%clk 0:02:17.7]} 33... Kf5 {[%clk 0:00:38.5]} 34.
h5 {[%clk 0:02:16.7]} 34... gxh5 {[%clk 0:00:34.7]} 35. Rc7 {[%clk 0:02:09]}
35... Rxb2+ {[%clk 0:00:17.9]} 36. Kf3 {[%clk 0:02:09.1]} 36... Rb3 {[%clk
0:00:17.1]} 37. Rc5+ {[%clk 0:02:05.7]} 37... Kg6 {[%clk 0:00:16.9]} 38. Ke4
{[%clk 0:02:02.4]} 38... Rxa3 {[%clk 0:00:16.3]} 39. Rc7 {[%clk 0:01:57.2]}
39... Ra2 {[%clk 0:00:15.4]} 40. Rxb7 {[%clk 0:01:52.8]} 40... Rxg2 {[%clk
0:00:15.1]} 41. Rxa7 {[%clk 0:01:53.2]} 41... Rd2 {[%clk 0:00:14.3]} 42. Rd7
{[%clk 0:01:34.6]} 42... Kg5 {[%clk 0:00:12]} 43. Kf3 {[%clk 0:01:33]} 43... Rd1
{[%clk 0:00:07.7]} 44. Rd5+ {[%clk 0:01:32.6]} 44... Kh4 {[%clk 0:00:07.4]} 45.
Kxf4 {[%clk 0:01:29.9]} 45... Rf1+ {[%clk 0:00:07.6]} 46. Ke3 {[%clk 0:01:30.4]}
46... Kg4 {[%clk 0:00:07.8]} 47. Rd7 {[%clk 0:01:30.2]} 47... h6 {[%clk
0:00:07.4]} 48. Rg7+ {[%clk 0:01:29.2]} 48... Kh3 {[%clk 0:00:06.9]} 49. d4
{[%clk 0:01:29.5]} 49... h4 {[%clk 0:00:07.1]} 50. Ke2 {[%clk 0:01:26.2]} 50...
Rf5 {[%clk 0:00:06.3]} 51. Ke3 {[%clk 0:01:20.1]} 51... Rg5 {[%clk 0:00:06.4]}
52. Rh7 {[%clk 0:01:04.3]} 52... h5 {[%clk 0:00:06.3]} 53. Kf4 {[%clk
0:01:03.9]} 53... Rg4+ {[%clk 0:00:06.3]} 54. Ke5 {[%clk 0:01:04.4]} 54... Kg3
{[%clk 0:00:06.5]} 55. d5 {[%clk 0:01:03.4]} 55... h3 {[%clk 0:00:06.6]} 56. Ra7
{[%clk 0:01:00.4]} 56... h2 {[%clk 0:00:06.6]} 57. Ra1 {[%clk 0:00:54.6]} 57...
Kh3 {[%clk 0:00:06.9]} 58. d6 {[%clk 0:00:53.1]} 58... Rg1 {[%clk 0:00:07]} 59.
Ra3+ {[%clk 0:00:52.2]} 59... Kg4 {[%clk 0:00:06.8]} 60. Ra4+ {[%clk 0:00:46.1]}
60... Kf3 {[%clk 0:00:06.9]} 61. d7 {[%clk 0:00:45.2]} 61... Re1+ {[%clk
0:00:04.2]} 62. Kf6 {[%clk 0:00:40.2]} 62... Rd1 {[%clk 0:00:04.3]} 63. Rh4
{[%clk 0:00:39.1]} 63... Rxd7 {[%clk 0:00:03.6]} 64. Rxh2 {[%clk 0:00:39.5]}
64... Rh7 {[%clk 0:00:03.7]} 65. Kg5 {[%clk 0:00:39.4]} 65... Kg3 {[%clk
0:00:03.7]} 66. Rxh5 {[%clk 0:00:39.7]} 66... Rxh5+ {[%clk 0:00:04.1]} 67. Kxh5
{[%clk 0:00:40.6]} 1/2-1/2

[Event "Late-Titled-Tuesday-Blitz-March-26-2024"]
[Site "Chess.com"]
[Date "2024.03.26"]
[Round "3"]
[White "Koalaskakistis"]
[Black "Stanbad1"]
[Result "1-0"]
[WhiteElo "2461"]
[BlackElo "2642"]
[TimeControl "180+1"]
[EndTime "14:30:35 PDT"]
[Termination "Koalaskakistis won on time"]

1. e4 {[%clk 0:02:53.5]} 1... c6 {[%clk 0:02:59.2]} 2. c4 {[%clk 0:02:51.1]}
2... d5 {[%clk 0:02:59.4]} 3. exd5 {[%clk 0:02:51.4]} 3... cxd5 {[%clk
0:03:00.1]} 4. cxd5 {[%clk 0:02:52.3]} 4... Nf6 {[%clk 0:02:59.2]} 5. Bb5+
{[%clk 0:02:36]} 5... Bd7 {[%clk 0:02:57.5]} 6. Bc4 {[%clk 0:02:32.2]} 6... g6
{[%clk 0:02:53.5]} 7. Nc3 {[%clk 0:02:31.8]} 7... Bg7 {[%clk 0:02:53.6]} 8. Qb3
{[%clk 0:02:28.4]} 8... Bc8 {[%clk 0:02:40.7]} 9. d3 {[%clk 0:02:22.7]} 9... O-O
{[%clk 0:02:40.1]} 10. Nf3 {[%clk 0:02:20.1]} 10... Nbd7 {[%clk 0:02:39.9]} 11.
O-O {[%clk 0:02:18]} 11... Nb6 {[%clk 0:02:27.3]} 12. Re1 {[%clk 0:02:10.7]}
12... Bf5 {[%clk 0:02:18]} 13. h3 {[%clk 0:01:59.4]} 13... Rc8 {[%clk
0:01:47.2]} 14. Be3 {[%clk 0:01:52.9]} 14... Ne8 {[%clk 0:01:25.9]} 15. Nb5
{[%clk 0:01:44.5]} 15... Nxc4 {[%clk 0:01:24.5]} 16. dxc4 {[%clk 0:01:43.2]}
16... a6 {[%clk 0:01:22]} 17. Nbd4 {[%clk 0:01:43.3]} 17... Bd7 {[%clk
0:01:18.5]} 18. Rac1 {[%clk 0:01:41]} 18... Nd6 {[%clk 0:01:15.3]} 19. c5 {[%clk
0:01:36.9]} 19... Nb5 {[%clk 0:01:09.5]} 20. Nxb5 {[%clk 0:01:37]} 20... Bxb5
{[%clk 0:01:10.1]} 21. a4 {[%clk 0:01:36.8]} 21... Bd7 {[%clk 0:01:05.6]} 22.
Qxb7 {[%clk 0:01:30.5]} 22... Bxa4 {[%clk 0:00:57.3]} 23. Qxa6 {[%clk
0:01:26.3]} 23... Bb3 {[%clk 0:00:57.6]} 24. d6 {[%clk 0:00:59.8]} 24... exd6
{[%clk 0:00:56.9]} 25. cxd6 {[%clk 0:00:58.2]} 25... Ra8 {[%clk 0:00:50]} 26.
Qd3 {[%clk 0:00:54.3]} 26... Rb8 {[%clk 0:00:47.4]} 27. Bg5 {[%clk 0:00:49.1]}
27... f6 {[%clk 0:00:37]} 28. Bf4 {[%clk 0:00:45.4]} 28... Bf7 {[%clk 0:00:34]}
29. Rc2 {[%clk 0:00:30.4]} 29... Qa5 {[%clk 0:00:21.7]} 30. Rd2 {[%clk
0:00:28.1]} 30... Rfd8 {[%clk 0:00:19.4]} 31. Red1 {[%clk 0:00:26.7]} 31... Bf8
{[%clk 0:00:19.3]} 32. Qc3 {[%clk 0:00:22.8]} 32... Qf5 {[%clk 0:00:17.3]} 33.
Bg3 {[%clk 0:00:23]} 33... Rbc8 {[%clk 0:00:17.2]} 34. Qb4 {[%clk 0:00:19.2]}
34... Rc4 {[%clk 0:00:15.6]} 35. Qb7 {[%clk 0:00:17.3]} 35... Rd7 {[%clk
0:00:14.9]} 36. Qb8 {[%clk 0:00:16.6]} 36... Kg7 {[%clk 0:00:15.1]} 37. Nd4
{[%clk 0:00:16.1]} 37... Qc5 {[%clk 0:00:13.3]} 38. Nb3 {[%clk 0:00:15.5]} 38...
Qf5 {[%clk 0:00:10.8]} 39. Nd4 {[%clk 0:00:11.1]} 39... Qc5 {[%clk 0:00:10.3]}
40. Ne2 {[%clk 0:00:11.6]} 40... Rc2 {[%clk 0:00:09.5]} 41. Nc3 {[%clk
0:00:10.5]} 41... Rxd2 {[%clk 0:00:09.5]} 42. Rxd2 {[%clk 0:00:11.4]} 42... Qf5
{[%clk 0:00:06.4]} 43. Qb4 {[%clk 0:00:10.1]} 43... h5 {[%clk 0:00:06.3]} 44.
Qd4 {[%clk 0:00:09.8]} 44... g5 {[%clk 0:00:05.5]} 45. h4 {[%clk 0:00:08.8]}
45... g4 {[%clk 0:00:05.2]} 46. Ne4 {[%clk 0:00:09.2]} 46... Bg6 {[%clk
0:00:04.7]} 47. Nxf6 {[%clk 0:00:09.8]} 47... Kh6 {[%clk 0:00:03.3]} 48. Nxd7
{[%clk 0:00:08.8]} 48... Qxd7 {[%clk 0:00:03]} 49. Qh8+ {[%clk 0:00:08.7]} 49...
Bh7 {[%clk 0:00:02.5]} 50. Qf6+ {[%clk 0:00:07.8]} 50... Bg6 {[%clk 0:00:02.4]}
51. Qh8+ {[%clk 0:00:08.4]} 51... Bh7 {[%clk 0:00:01.4]} 52. Bf4+ {[%clk
0:00:09]} 52... Kg6 {[%clk 0:00:01.6]} 53. Qxf8 {[%clk 0:00:09.4]} 53... Qf5
{[%clk 0:00:02.1]} 54. Qh6+ {[%clk 0:00:09.4]} 54... Kf7 {[%clk 0:00:02.3]} 55.
d7 {[%clk 0:00:09.6]} 55... Qxf4 {[%clk 0:00:02.6]} 56. Qxf4+ {[%clk 0:00:09.7]}
1-0